Cogmind - Beta 11.1 @@@ ROGUE MODE // 2022.05.26 @ 11:48:30 Player: btmk16 Result: Destroyed by G-67 Veteran with Plasma Rifle Performance ------------- Evolutions (7) 3500 Regions Visited (11) 2200 Robots Destroyed (198) 990 Value Destroyed (7594) 7594 Prototype IDs (21) 420 Alien Tech Used (0) 0 Bonus (1514) 1514 TOTAL SCORE: 16218 Bonus ------- High Alert Combat Kills 1034 Follower Combat Kills 480 Cogmind --------- Core Integrity 0/1300 Matter 287/300 Energy 82/100 System Corruption 6% Temperature Cool (0) Movement Hovering (60) Location -3/Research Parts ------- > --- POWER (1) -------- (None) > --- PROPULSION (6) --- Improved Antigrav System > --- UTILITY (10) ----- (None) > --- WEAPON (4) ------- (None) > --- INVENTORY (5) ---- Medium Treads Stealth Drone Bay (2/2) Stealth Drone Bay (2/2) Peak State ------------ > --- POWER ------------ Neutrino Core > --- PROPULSION ------- Heavy Treads Heavy Treads Heavy Treads > --- UTILITY ---------- Improved Heat Sink Experimental Cooling System Huge Storage Unit Structural Scanner Advanced Sensor Array Advanced Targeting Computer Armor Integrity Analyzer Cloaking Device Stealth Drone Bay > --- WEAPON ----------- HERF Cannon Hypervelocity Coil Gun Improved KE Penetrator Antimatter Cannon > --- INVENTORY -------- Light Antimatter Reactor Medium Treads Advanced Medium Treads Antigrav System Linear Gravjet Cooled Gravmag System Combat Antigrav System Improved Heat Sink Medium Storage Unit High-capacity Storage Unit Improved Trap Scanner Improved Sensor Array Recoil Nullifier High-powered Tractor Beam Improved Field Recycling Unit Drone Bay Drone Bay Stealth Drone Bay Quantum Rifle Mini Assault Cannon Heavy Rocket Launcher Powered Hammer Ionic Axe Ionic Axe [Rating: 127] Favorites ----------- Power Neutrino Core Engine Improved Deuterium Engine Power Core Neutrino Core Reactor Light Antimatter Reactor Propulsion Light Treads Treads Light Treads Leg Aluminum Leg Wheel Armored Huge Wheel Hover Unit Antigrav System Utility Improved Heat Sink Device Improved Heat Sink Storage High-capacity Storage Unit Processor Advanced Targeting Computer Protection Hardened Light Armor Plating Weapon Mini Assault Cannon Energy Gun Field Laser Energy Cannon HERF Cannon Ballistic Gun Improved Assault Rifle Ballistic Cannon Mini Assault Cannon Launcher Precision Grenade Launcher Impact Weapon Powered Hammer Slashing Weapon Ionic Axe Build | -11 -10 -9 -8 -7 -7 -6 -6 -6 -5 -4 -3 ------- Run | Scr Mat Mat Mat Fac Sto Fac Low Low Fac Fac Res Slots Evolved 14 | . . 2 2 2 . 2 . . 2 2 2 Power . | . . . . . . . . . . . . Propulsion 4 | . . 1 1 . . 1 . . 1 . . Utility 8 | . . 1 1 2 . 1 . . 1 . 2 Weapon 2 | . . . . . . . . . . 2 . Parts Attached 231 | . 6 31 22 32 56 26 5 1 31 3 18 Power 20 | . 1 3 3 2 7 1 . 1 1 . 1 Engine 16 | . 1 3 3 2 5 1 . 1 . . . Core 3 | . . . . . 2 . . . 1 . . Reactor 1 | . . . . . . . . . . . 1 Propulsion 68 | . 2 17 8 5 13 6 . . 12 . 5 Treads 47 | . . 16 8 5 9 5 . . 3 . 1 Leg 1 | . . 1 . . . . . . . . . Wheel 9 | . 2 . . . 4 1 . . 2 . . Hover 11 | . . . . . . . . . 7 . 4 Flight . | . . . . . . . . . . . . Utility 78 | . 2 4 3 17 19 13 3 . 11 1 5 Device 48 | . 1 2 . 11 12 6 2 . 8 1 5 Storage 6 | . 1 . . . 1 1 . . 3 . . Processor 6 | . . 2 . 1 1 2 . . . . . Hackware . | . . . . . . . . . . . . Protection 18 | . . . 3 5 5 4 1 . . . . Artifact . | . . . . . . . . . . . . Weapon 65 | . 1 7 8 8 17 6 2 . 7 2 7 Energy Gun 5 | . . 3 1 . . . . . . . 1 Energy Cannon 2 | . . . . 1 . . . . . 1 . Ballistic Gun 11 | . 1 4 4 . . . . . . . 2 Ballistic Cannon 27 | . . . 3 5 8 5 1 . 4 . 1 Launcher 7 | . . . . 2 4 . 1 . . . . Special Weapon . | . . . . . . . . . . . . Impact Weapon 11 | . . . . . 5 1 . . 3 1 1 Slashing Weapon 2 | . . . . . . . . . . . 2 Piercing Weapon . | . . . . . . . . . . . . Special Melee Weapon . | . . . . . . . . . . . . Unidentified Prototypes 13 | . . 2 1 1 3 1 . . 1 1 3 Corrupted Parts 1 | . . . . . . . . . . . 1 System Corruption 2 | . . . . . . . . . . . 2 Parts Lost 79 | . 1 6 4 5 17 12 6 . . 1 27 Power 9 | . . 1 1 1 2 1 1 . . . 2 Propulsion 27 | . . 3 1 2 6 5 3 . . . 7 Utility 31 | . . 1 1 2 9 5 1 . . 1 11 Weapon 12 | . 1 1 1 . . 1 1 . . . 7 Highest Loss Streak 24 | . 1 4 2 1 5 6 6 . . 1 24 To Critical Strikes . | . . . . . . . . . . . . Average Slot Usage (%) 85 | . 90 98 98 99 93 85 44 51 81 79 73 Engine 5 | . 14 10 7 6 6 5 . 4 1 . . Treads 19 | . . 30 35 29 22 17 . . 6 15 12 Wheel 1 | . 15 1 . . 3 4 . . 1 . . Device 15 | . 5 10 3 21 13 11 10 13 22 22 25 Storage 7 | . 14 11 9 7 12 13 1 . 2 5 3 Processor 8 | . . 10 9 2 7 12 13 13 11 10 8 Protection 6 | . . . 14 12 8 4 6 6 5 1 . Energy Gun 1 | . 7 5 6 . . . . . . . . Ballistic Gun 3 | . 20 16 1 . . . . . . . 5 Ballistic Cannon 9 | . . . 9 14 13 11 12 13 7 10 4 Naked Turns 18 | . . . . . . . . . . . 18 Heaviest Build 138 | 12 49 54 67 83 85 95 16 25 112 125 138 Greatest Support 140 | 20 26 60 82 85 92 82 3 3 140 140 140 Greatest Overweight (x) 8 | . 1 3 . 1 2 7 5 8 8 . . Average Overweight (x) . | . . . . . . 2 4 7 . . . Largest Inventory Capacity 25 | . 20 20 20 20 20 20 20 5 25 25 25 Average Capacity 17 | . 14 20 20 20 20 20 6 5 11 25 24 Most Carried 25 | . 13 20 20 20 20 20 18 5 16 24 25 Average Carried 16 | . 9 19 19 19 18 18 5 5 8 17 22 Final Capacity 25 | 8 20 20 20 20 20 20 5 5 25 25 5 Final Carried 24 | 6 13 20 20 20 20 18 5 5 16 24 5 Class Distribution -------------------- 57% | Mutant 35% | Scavenger-Mutant 3% | Gunner Dominant Class ---------------- Mutant | -10/Materials Scavenger-Mutant | -9/Materials Scavenger-Mutant | -8/Materials Scavenger-Mutant | -7/Factory Mutant | -7/Storage Mutant | -6/Factory Mutant | -6/Lower Caves Mutant | -6/Lower Caves Scavenger-Mutant | -5/Factory Gunner | -4/Factory Mutant | -3/Research Resources | -11 -10 -9 -8 -7 -7 -6 -6 -6 -5 -4 -3 ----------- Run | Scr Mat Mat Mat Fac Sto Fac Low Low Fac Fac Res Matter Collected 7911 | 179 137 878 568 1248 2446 846 134 57 290 162 966 Remotely 1585 | . . . . . 43 669 . . 170 . 703 Salvage Created 7419 | . 162 1323 659 799 1897 479 149 57 197 133 1564 Parts 357 | . 6 95 41 38 93 20 5 1 11 1 46 Haulers Intercepted 15 | . 1 4 3 1 5 . . . . 1 . Recyclers Shooed 10 | . . . . . 5 4 . . . . 1 Parts Field Recycled 31 | . . . . 8 23 . . . . . . Retrieved Matter 556 | . . . . 151 405 . . . . . . Parts Self-Destructed 6 | . . . . . . . 4 2 . . . Prevented . | . . . . . . . . . . . . Kills | -11 -10 -9 -8 -7 -7 -6 -6 -6 -5 -4 -3 ------- Run | Scr Mat Mat Mat Fac Sto Fac Low Low Fac Fac Res Combat Hostiles Destroyed 153 | . 2 27 12 24 46 12 7 1 2 1 19 Melee 4 | . . . . . . . . . . . 4 Guns 41 | . 2 27 4 . . . . . . . 8 Cannons 103 | . . . 8 24 44 12 5 1 1 1 7 AOE 5 | . . . . . 2 . 2 . 1 . . Classes Destroyed 14 | . 3 3 6 2 . . . . . . . Worker 12 | . 1 1 . 1 6 1 . . 1 . 1 Builder 8 | . . . 2 1 3 1 . . . . 1 Tunneler 1 | . . . 1 . . . . . . . . Hauler 15 | . 1 4 3 1 5 . . . . 1 . Recycler 9 | . . . . 1 4 1 . . 1 . 2 Operator 1 | . . . 1 . . . . . . . . Watcher 5 | . . . 1 . 2 . . . . 1 1 Swarmer 24 | . . 7 . 6 7 . . . . . 4 Grunt 70 | . 2 11 5 10 28 4 3 . . . 7 Brawler 5 | . . 1 . 1 . 3 . . . . . Duelist 4 | . . . 1 1 . 1 1 . . . . Sentry 36 | . . 8 4 3 9 4 1 1 1 1 4 Hunter 2 | . . . 2 . . . . . . . . Programmer 12 | . . . . 3 2 . 2 . 1 . 4 Best Kill Streak 9 | . 2 5 2 4 6 9 4 1 2 1 8 Combat Bots Only 7 | . 2 4 2 4 3 7 4 1 1 1 7 Max Kills in Single Turn 2 | . 1 1 1 1 2 2 1 1 1 1 2 Gunslinging . | . . . . . . . . . . . . Exploded 2 | . . . . . 2 . 1 . 1 . . Melee 1 | . . . . . . . . . . . 1 Uniques/NPCs Destroyed . | . . . . . . . . . . . . Combat | -11 -10 -9 -8 -7 -7 -6 -6 -6 -5 -4 -3 -------- Run | Scr Mat Mat Mat Fac Sto Fac Low Low Fac Fac Res Damage Taken 16147 | . 164 1611 868 1971 3567 2032 602 12 278 330 4712 Core 2667 | . 21 204 45 220 325 275 132 . 41 88 1316 Absorbed by Shields . | . . . . . . . . . . . . Reduced by Siege Mode 244 | . . . . . . . . . . . 244 Redirected to Shielding 101 | . . . . . . . 72 . 15 14 . Regen/Repaired (Parts) 264 | . . . . 137 127 . . . . . . Core Remaining (%) 74 | 100 91 49 91 . 22 . . 52 95 92 . Volleys Fired 572 | . 16 91 58 90 163 53 14 1 12 10 64 Largest 4 | . 2 2 2 2 2 2 2 2 2 3 4 Hottest 204 | . 60 79 128 117 96 96 88 88 88 176 204 Shots Fired 1151 | . 31 182 116 164 321 105 25 2 21 24 160 Gun 373 | . 31 182 62 . . . . . . . 98 Cannon 766 | . . . 54 161 315 105 22 2 21 24 62 Launcher 12 | . . . . 3 6 . 3 . . . . Special . | . . . . . . . . . . . . Kinetic 1039 | . 25 153 66 157 315 105 22 2 21 20 153 Thermal 81 | . . 29 50 . . . . . . . 2 Explosive 10 | . . . . 1 6 . 3 . . . . Electromagnetic 21 | . 6 . . 6 . . . . . 4 5 Robot Hit Streak 25 | . 6 25 6 11 19 17 10 5 11 23 21 Robot Miss Streak 6 | . 6 4 3 4 5 4 1 . 1 1 5 Penetration Max 1 | . . . 1 . . . . . . . 1 Secondary Targets 3 | . 1 2 . . . . . . . . . Max Gunslinging Chain 1 | . 1 1 . . . . . . . . . Shots Hit Robots 727 | . 17 117 73 84 187 62 19 2 12 17 137 Core Hits 315 | . 7 49 31 32 83 28 15 1 4 6 59 Critical Kills 5 | . . . . . . . . . . . 5 Critical Parts Destroyed 14 | . . 1 . . . . . . . . 13 Critical Strikes 56 | . . 2 4 8 8 6 2 . 3 . 23 Burn 2 | . . 1 1 . . . . . . . . Destroy 19 | . . 1 . . . . . . . . 18 Blast 34 | . . . 3 8 8 6 2 . 3 . 4 Sever 1 | . . . . . . . . . . . 1 Melee Attacks 44 | . . . . . 6 3 . . 10 . 25 Impact 21 | . . . . . 6 3 . . 10 . 2 Slashing 23 | . . . . . . . . . . . 23 Piercing . | . . . . . . . . . . . . Sneak Attacks . | . . . . . . . . . . . . Combat Hostiles . | . . . . . . . . . . . . Follow-up Attacks . | . . . . . . . . . . . . Damage Inflicted 21002 | . 203 1782 1730 2534 6434 2287 1124 70 412 587 3839 Guns 4009 | . 203 1778 673 . . . . . . . 1355 Cannons 14899 | . . . 1043 2500 6074 2227 567 70 412 587 1419 Explosions 1123 | . . . . 13 297 53 557 . . . 203 Melee 844 | . . . . . . . . . . . 844 Ramming 127 | . . 4 14 21 63 7 . . . . 18 Kinetic 17546 | . 163 1425 1191 2403 6074 2227 567 70 412 400 2614 Thermal 959 | . . 353 525 . . 53 . . . . 28 Explosive 1057 | . . . . . 297 . 557 . . . 203 Electromagnetic 469 | . 40 . . 110 . . . . . 187 132 Impact . | . . . . . . . . . . . . Slashing 844 | . . . . . . . . . . . 844 Piercing . | . . . . . . . . . . . . Highest Corruption 6 | . 1 . 1 2 4 4 5 5 2 . 6 Average Corruption 2 | . 1 . 1 1 2 4 4 5 1 . 4 Corruption Purged . | . . . . . . . . . . . . Corruption Blocked . | . . . . . . . . . . . . Effects 96 | . 2 . 7 6 28 10 26 5 6 . 6 Message Errors 23 | . . . 3 . 5 2 6 3 1 . 3 Matter Fused 27 | . 1 . 2 3 9 4 7 1 . . . Heat Flow Errors 12 | . . . . 2 2 2 4 1 . . 1 Energy Discharges 9 | . . . 1 . 4 . 1 . 2 . 1 Data Loss (minor) 11 | . . . 1 1 1 . 7 . 1 . . Data Loss (major) 4 | . 1 . . . 1 1 . . 1 . . Misfires 5 | . . . . . 4 . . . . . 1 Alerts 2 | . . . . . 1 . 1 . . . . Weapon Failures 3 | . . . . . 1 1 . . 1 . . Overload Shots . | . . . . . . . . . . . . Overflow Damage 367 | . . . . 69 96 51 35 . 1 . 115 Projectiles 251 | . . . . 63 96 38 5 . 1 . 48 Explosions 77 | . . . . . . 13 30 . . . 34 Melee 39 | . . . . 6 . . . . . . 33 Knockbacks 86 | . . . 13 15 36 10 1 . 7 . 4 Impact 1 | . . . . . 1 . . . . . . Kinetic 77 | . . . 13 15 28 10 1 . 6 . 4 Secondary 8 | . . . . . 7 . . . 1 . . Self-Inflicted Damage 321 | . . . . . 69 . 161 . . 88 3 Shots 6 | . . . . . 2 . 3 . . 1 . Rammed 12 | . . 2 2 . 4 2 . . . . 2 Targets Rammed 17 | . . 2 2 1 8 2 . . . . 2 Kicked . | . . . . . . . . . . . . Crushed 5 | . . . . 1 4 . . . . . . Highest Temperature 601 | . 30 20 390 435 233 601 211 109 . 27 215 Average Temperature 110 | . 14 6 136 199 50 159 58 65 . 18 55 Received Heat Transfer 4208 | . 90 633 324 540 1143 618 135 . 21 54 650 Effects 25 | . . . 2 7 . 16 . . . . . Shutdowns 3 | . . . . 1 . 2 . . . . . Energy Bleed 3 | . . . 1 1 . 1 . . . . . Interference 11 | . . . . 4 . 7 . . . . . Matter Decay 2 | . . . . . . 2 . . . . . Short Circuit 2 | . . . . 1 . 1 . . . . . Damage (minor) 3 | . . . 1 . . 2 . . . . . Damage (core) 1 | . . . . . . 1 . . . . . Siege Activations 3 | . . . . . . . . . . . 3 Total Turns 225 | . . . . . . . . . . . 225 Longest Duration 111 | . . . . . . . . . . . 111 Robots Corrupted . | . . . . . . . . . . . . Combat Hostiles . | . . . . . . . . . . . . Parts Fried 2 | . . . . 1 . . . . . 1 . Impact Corruptions 1 | . . . . 1 . . . . . . . Robots Melted . | . . . . . . . . . . . . Combat Hostiles . | . . . . . . . . . . . . Parts Melted 5 | . . 1 3 . . . . . . . 1 Heat Transferred 2159 | . . 851 1221 . . 50 . . . . 37 Parts Sabotaged . | . . . . . . . . . . . . Parts Stolen . | . . . . . . . . . . . . Parts Stripped . | . . . . . . . . . . . . Power Chain Reactions . | . . . . . . . . . . . . Missiles Intercepted . | . . . . . . . . . . . . Alert | -11 -10 -9 -8 -7 -7 -6 -6 -6 -5 -4 -3 ------- Run | Scr Mat Mat Mat Fac Sto Fac Low Low Fac Fac Res Peak Influence 1558 | . 67 414 378 373 1558 790 . . 189 196 256 Initial 708 | . . 27 129 171 169 708 . . 32 20 . Average 335 | . 29 178 209 289 773 647 . . 66 154 71 Maximum Alert Level 4 | . . 2 1 1 4 3 . . . . 1 Low Security (%) 41 | . 100 50 54 13 8 . . . 100 100 86 Level 1 36 | . . 46 45 86 19 . . . . . 13 Level 2 8 | . . 2 . . 19 56 . . . . . Level 3 6 | . . . . . 19 43 . . . . . Level 4 6 | . . . . . 32 . . . . . . Level 5 . | . . . . . . . . . . . . High Security . | . . . . . . . . . . . . Max Security . | . . . . . . . . . . . . Squads Dispatched 40 | . 1 3 1 8 16 4 . . 2 1 4 Investigation 5 | . . 1 . 1 3 . . . . . . Extermination 11 | . . . . 4 3 1 . . 1 . 2 Reinforcement 14 | . 1 2 1 . 6 . . . 1 1 2 Assault 3 | . . . . . 1 2 . . . . . Garrison 7 | . . . . 3 3 1 . . . . . Intercept . | . . . . . . . . . . . . Searches Triggered . | . . . . . . . . . . . . Construction Impeded 3 | . . . . . . . . . 1 . 2 Haulers Reinforced 4 | . . . . . 3 . . . . 1 . Active Scanning Responses . | . . . . . . . . . . . . Cargo Convoy Interrupts . | . . . . . . . . . . . . Stealth | -11 -10 -9 -8 -7 -7 -6 -6 -6 -5 -4 -3 --------- Run | Scr Mat Mat Mat Fac Sto Fac Low Low Fac Fac Res Distress Signals 9 | . . 3 3 . 1 . . . . . 2 Communications Jammed . | . . . . . . . . . . . . Distress Signals . | . . . . . . . . . . . . Times Spotted 229 | . 3 38 27 28 64 17 7 1 5 3 36 Peak Tracking Total 14 | . 4 5 4 4 5 5 4 1 2 2 14 Tactical Retreats 14 | . . 2 6 1 1 1 . . . . 3 Traps | -11 -10 -9 -8 -7 -7 -6 -6 -6 -5 -4 -3 ------- Run | Scr Mat Mat Mat Fac Sto Fac Low Low Fac Fac Res Traps Triggered 7 | . 1 1 2 1 1 . . . 1 . . Indirectly . | . . . . . . . . . . . . Trap Hack Attempts . | . . . . . . . . . . . . Triggered . | . . . . . . . . . . . . Disarmed . | . . . . . . . . . . . . Reprogrammed . | . . . . . . . . . . . . Reused . | . . . . . . . . . . . . Traps Extracted . | . . . . . . . . . . . . Installed . | . . . . . . . . . . . . Triggered . | . . . . . . . . . . . . Machines | -11 -10 -9 -8 -7 -7 -6 -6 -6 -5 -4 -3 ---------- Run | Scr Mat Mat Mat Fac Sto Fac Low Low Fac Fac Res Machines Disabled 22 | . . . 2 5 8 2 . . . 4 1 Max in Single Turn 4 | . . . 1 1 1 2 . . . 4 1 Garrison Access 2 | . . . . 1 . 1 . . . . . Machines Sabotaged . | . . . . . . . . . . . . Garrisons Compromised . | . . . . . . . . . . . . Overloaded Fab Kills . | . . . . . . . . . . . . Hacking | -11 -10 -9 -8 -7 -7 -6 -6 -6 -5 -4 -3 --------- Run | Scr Mat Mat Mat Fac Sto Fac Low Low Fac Fac Res Machines Accessed 37 | . 2 5 4 8 10 2 . . 4 1 1 Terminals 29 | . 2 5 4 4 7 2 . . 3 1 1 Fabricators 2 | . . . . 1 . . . . 1 . . Repair Stations 3 | . . . . 2 1 . . . . . . Recycling Units 1 | . . . . . 1 . . . . . . Scanalyzers . | . . . . . . . . . . . . Garrison Access 2 | . . . . 1 1 . . . . . . Total Hacks 91 | . 4 14 16 15 22 5 . . 11 2 2 Successful 51 | . 2 8 11 7 12 2 . . 8 1 . Failed 40 | . 2 6 5 8 10 3 . . 3 1 2 Catastrophic 11 | . 2 . . 3 3 1 . . 1 1 . Database Lockouts . | . . . . . . . . . . . . Manual 17 | . 3 1 7 2 1 . . . 3 . . Terminals 74 | . 4 14 16 7 15 5 . . 9 2 2 Fabricators 4 | . . . . 2 . . . . 2 . . Repair Stations 7 | . . . . 5 2 . . . . . . Recycling Units 2 | . . . . . 2 . . . . . . Scanalyzers . | . . . . . . . . . . . . Garrison Access 4 | . . . . 1 3 . . . . . . Terminal Hacks 39 | . 2 8 11 2 8 2 . . 5 1 . Part Schematic 1 | . . . . 1 . . . . . . . Robot Analysis 9 | . 1 . 7 . . . . . 1 . . Prototype ID Bank 4 | . . . 1 1 2 . . . . . . Open Door 3 | . . . . . 3 . . . . . . Branch Access Points 2 | . . 1 . . . . . . 1 . . Emergency Access Points 1 | . . . . . . . . . 1 . . Terminal Index 1 | . . . . . . . . . 1 . . Fabricator Index 1 | . . . . . 1 . . . . . . Alert Level 7 | . 1 2 1 . 1 . . . 1 1 . Unreport Threat 3 | . . 1 . . . 2 . . . . . Dispatch Records 1 | . . . . . 1 . . . . . . Hauler Manifests 3 | . . 2 1 . . . . . . . . Zone Layout 3 | . . 2 1 . . . . . . . . Fabricator Hacks 2 | . . . . 1 . . . . 1 . . Network Status 2 | . . . . 1 . . . . 1 . . Repair Station Hacks 5 | . . . . 3 2 . . . . . . Scan Component 3 | . . . . 2 1 . . . . . . Repair 2 | . . . . 1 1 . . . . . . Recycling Unit Hacks 2 | . . . . . 2 . . . . . . Retrieve Matter 1 | . . . . . 1 . . . . . . Retrieve Components 1 | . . . . . 1 . . . . . . Scanalyzer . | . . . . . . . . . . . . Garrison Access Hacks 1 | . . . . 1 . . . . . . . Seal Access 1 | . . . . 1 . . . . . . . Unauthorized Hacks 2 | . . . . . . . . . 2 . . Terminals 2 | . . . . . . . . . 2 . . Track 1 | . . . . . . . . . 1 . . Botnet 1 | . . . . . . . . . 1 . . Fabricators . | . . . . . . . . . . . . Repair Stations . | . . . . . . . . . . . . Recycling Units . | . . . . . . . . . . . . Scanalyzers . | . . . . . . . . . . . . Garrison Access . | . . . . . . . . . . . . Data Cores Recovered 1 | . . . 1 . . . . . . . . Used . | . . . . . . . . . . . . Hacking Detections 29 | . 2 4 2 7 6 2 . . 4 1 1 Full Trace Events 3 | . . . . 1 2 . . . . . . Feedback Events 1 | . . . . 1 . . . . . . . Corruption 1 | . . . . 1 . . . . . . . Feedback Blocked . | . . . . . . . . . . . . Robot Schematics Acquired . | . . . . . . . . . . . . Robots Built . | . . . . . . . . . . . . Authchips . | . . . . . . . . . . . . Time . | . . . . . . . . . . . . Total Robot Build Rating . | . . . . . . . . . . . . Part Schematics Acquired 1 | . . . . 1 . . . . . . . Parts Built . | . . . . . . . . . . . . Authchips . | . . . . . . . . . . . . Time . | . . . . . . . . . . . . Total Part Build Rating . | . . . . . . . . . . . . Parts Repaired 2 | . . . . 1 1 . . . . . . Time 51 | . . . . 19 32 . . . . . . Parts Recycled . | . . . . . . . . . . . . Recycled Matter . | . . . . . . . . . . . . Retrieved Matter . | . . . . . . . . . . . . Retrieved Components 1 | . . . . . 1 . . . . . . Parts Scanalyzed . | . . . . . . . . . . . . Part Schematics Acquired . | . . . . . . . . . . . . Parts Damaged . | . . . . . . . . . . . . Bothacking | -11 -10 -9 -8 -7 -7 -6 -6 -6 -5 -4 -3 ------------ Run | Scr Mat Mat Mat Fac Sto Fac Low Low Fac Fac Res Used RIF Installer . | . . . . . . . . . . . . Robots Hacked . | . . . . . . . . . . . . Non-combat . | . . . . . . . . . . . . Combat . | . . . . . . . . . . . . Robot Hacks Applied . | . . . . . . . . . . . . Relay Couplers Released 3 | . . . . . . 3 . . . . . Machine Destruction 3 | . . . . . . 3 . . . . . Fabnet Peak Effective % . | . . . . . . . . . . . . Robots Rewired . | . . . . . . . . . . . . Allies Hacked . | . . . . . . . . . . . . Hacks Repelled . | . . . . . . . . . . . . Allies | -11 -10 -9 -8 -7 -7 -6 -6 -6 -5 -4 -3 -------- Run | Scr Mat Mat Mat Fac Sto Fac Low Low Fac Fac Res Total Allies 10 | . . . . . 10 . . . . . . Largest Group 10 | . . . . . 10 . . . . . . Highest-Rated Group 173 | . . . . . 173 . . . . . . Highest-Rated Ally 29 | . . . . . 29 . . . . . . Total Orders 5 | . . . . . . 1 2 . . . 2 EXPLORE 5 | . . . . . . 1 2 . . . 2 Ally Attacks 106 | . . . . . 106 . . . . . . Total Damage 1471 | . . . . . 1471 . . . . . . Kills 15 | . . . . . 15 . . . . . . Allies Corrupted . | . . . . . . . . . . . . Allies Melted . | . . . . . . . . . . . . Intel | -11 -10 -9 -8 -7 -7 -6 -6 -6 -5 -4 -3 ------- Run | Scr Mat Mat Mat Fac Sto Fac Low Low Fac Fac Res Robot Analysis Total 9 | . 1 . 7 . . . . . 1 . . Derelict Logs Recovered 1 | . . . . . . . 1 . . . . Drone Launches 5 | . . . . . . 1 2 . . . 2 Drone Recoveries 4 | . . . . . . 1 1 . . . 2 Exploration | -11 -10 -9 -8 -7 -7 -6 -6 -6 -5 -4 -3 ------------- Run | Scr Mat Mat Mat Fac Sto Fac Low Low Fac Fac Res Turns Passed 11433 | . 308 1295 984 2344 1994 670 1246 377 743 413 1059 Spaces Moved 5324 | 1 221 584 444 1237 837 282 406 90 638 228 356 Core 541 | . . . . . . . 406 90 11 . 34 Treads 3408 | . . 517 444 1237 481 39 . . 140 228 322 Legs 98 | 1 97 . . . . . . . . . . Wheels 843 | . 124 67 . . 356 243 . . 53 . . Hover 434 | . . . . . . . . . 434 . . Flight . | . . . . . . . . . . . . Fastest Speed 42 | 120 105 105 156 156 105 130 250 300 42 160 50 Average Speed 159 | 120 111 156 158 157 145 157 277 410 93 160 149 Slowest Speed 450 | 120 120 160 160 235 240 312 300 450 450 160 160 Overloaded Moves . | . . . . . . . . . . . . Propulsion Burnouts . | . . . . . . . . . . . . Robots Hopped 1 | . . . . . 1 . . . . . . Cave-ins Triggered . | . . . . . . . . . . . . Exploration Rate (%) 32 | 1 37 56 35 31 91 15 66 14 20 4 14 Regions Visited 11 Branch Regions 3 Pre-discovered Areas . | . . . . . . . . . . . . Known Exits Taken . | . . . . . . . . . . . . Unknown Exits Taken 11 | 1 1 1 1 1 1 1 1 1 1 1 . Scrap Searched 2 | . . . . . . . 2 . . . . Spaces Dug 88 | . . . . 20 14 11 . . 13 28 2 Terrain Destroyed 364 | . . . 19 46 142 36 52 . 16 32 21 Melee 15 | . . . . . 1 3 . . 9 . 2 Projectile 191 | . . . 19 41 87 25 4 . 7 5 3 AOE 156 | . . . . 5 54 8 48 . . 27 14 Terrain Rammed . | . . . . . . . . . . . . Walls Destroyed . | . . . . . . . . . . . . Machines Disabled . | . . . . . . . . . . . . Actions | -11 -10 -9 -8 -7 -7 -6 -6 -6 -5 -4 -3 --------- Run | Scr Mat Mat Mat Fac Sto Fac Low Low Fac Fac Res Total 7114 | . 251 803 613 1470 1273 389 503 99 739 254 720 Wait 709 | . 2 36 64 72 164 13 75 8 26 7 242 Move 5311 | . 220 583 443 1236 834 281 405 89 637 227 356 Hop 1 | . . . . . 1 . . . . . . Pick Up 86 | . 6 24 7 14 15 2 . . 7 7 4 Fast Attach 70 | . 2 7 5 10 10 12 2 1 16 2 3 Attach 66 | . 1 10 5 4 19 7 2 . 4 1 13 Detach 37 | . 1 7 . 1 13 5 . . 7 . 3 Swap 95 | . 3 14 12 18 27 7 1 . 11 . 2 Drop 106 | . . 29 17 24 13 4 4 . 9 . 6 Fire 572 | . 16 91 58 90 163 53 14 1 12 10 64 Melee 44 | . . . . . 6 3 . . 10 . 25 Ram 2 | . . . . . 1 . . . . . 1 Kick . | . . . . . . . . . . . . Crush 15 | . . 2 2 1 7 2 . . . . 1 Escape Stasis . | . . . . . . . . . . . . Rewire . | . . . . . . . . . . . . Trap . | . . . . . . . . . . . . Miscellaneous . | . . . . . . . . . . . . Route ------- -11/Scrapyard -10/Materials -9/Materials (discovered 3 exits: *Mat / *Min x2) -8/Materials -7/Factory (discovered 2 exits: *Sto x2) -7/Storage (discovered 2 exits: *Fac / [*Rec]) -6/Factory -6/Lower Caves -6/Lower Caves -5/Factory (discovered 5 exits: *Fac / Upp x2 / Ext x2) -4/Factory -3/Research History --------- Turn | Location | Event 1 | -11/Scrapyard | Discovered new exit (range 0) 1 | -11/Scrapyard | Entered Materials 199 | -10/Materials | Discovered new exit (range 4) 306 | -10/Materials | Build established: Mutant 309 | -10/Materials | Entered another Materials area 309 | -9/Materials | Evolved 2 slots: Propulsion x1, Utility x1 587 | -9/Materials | Lost 4 parts (1p2n1u) 692 | -9/Materials | Discovered new exit (range 16) 849 | -9/Materials | Build established: Scavenger-Mutant 982 | -9/Materials | Identified exit to Mines 1392 | -9/Materials | Discovered new exit (range 20) 1431 | -9/Materials | Core integrity fell below 50% 1604 | -9/Materials | Entered another Materials area 1604 | -8/Materials | Evolved 2 slots: Propulsion x1, Utility x1 2463 | -8/Materials | Discovered new exit (range 5) 2494 | -8/Materials | Build established: Mutant 2588 | -8/Materials | Entered Factory 2588 | -7/Factory | Evolved 2 slots: Utility x2 2765 | -7/Factory | Garrison activated, responded to threat 2801 | -7/Factory | Build established: Scavenger-Mutant 3493 | -7/Factory | Found Powered Armor 3496 | -7/Factory | Found Powered Armor 3645 | -7/Factory | Repaired Adv. Treads 3781 | -7/Factory | Build established: Mutant 4141 | -7/Factory | Build established: Scavenger-Mutant 4548 | -7/Factory | Discovered new exit (range 6) 4849 | -7/Factory | Discovered new exit (range 17) 4855 | -7/Factory | Build established: Mutant 4932 | -7/Factory | Entered Storage 5010 | -7/Storage | Repaired Hrd. Light Armor Plating 5380 | -7/Storage | Garrison activated, responded to threat 5545 | -7/Storage | Lost 5 parts (1p2n2u) 5696 | -7/Storage | Core integrity fell below 50% 6077 | -7/Storage | Assisted by bots powering up and referring to "LRC-V3" 6132 | -7/Storage | First assault squad dispatched 6506 | -7/Storage | Lost 3 parts (1n2u) 6520 | -7/Storage | Used back door to open Recycling access 6520 | -7/Storage | Discovered new exit (range 5) 6882 | -7/Storage | Discovered new exit (range 19) 6926 | -7/Storage | Entered Factory 6926 | -6/Factory | Evolved 2 slots: Propulsion x1, Utility x1 7276 | -6/Factory | First assault squad dispatched 7288 | -6/Factory | Garrison activated, responded to threat 7344 | -6/Factory | Lost 4 parts (2n2u) 7460 | -6/Factory | Destroyed 7 combat bots 7463 | -6/Factory | Lost 6 parts (2n3u1w) 7562 | -6/Factory | Discovered new exit (range 16) 7596 | -6/Factory | Entered Lower Caves 7633 | -6/Lower Caves | Lost 6 parts (1p3n1u1w) 7715 | -6/Lower Caves | Learned Factory stockpile data 8129 | -6/Lower Caves | Attracted the attention of an 0b10 checkpoint 8783 | -6/Lower Caves | Encountered a Warlord checkpoint 8794 | -6/Lower Caves | Discovered new exit (range 16) 8842 | -6/Lower Caves | Entered another Lower Caves area 9159 | -6/Lower Caves | Discovered new exit (range 10) 9161 | -6/Lower Caves | Attracted the attention of an 0b10 checkpoint 9219 | -6/Lower Caves | Entered Factory 9219 | -5/Factory | Evolved 2 slots: Propulsion x1, Utility x1 9372 | -5/Factory | Identified exit to Upper Caves 9372 | -5/Factory | Identified exit to Extension 9622 | -5/Factory | Build established: Scavenger-Mutant 9926 | -5/Factory | Discovered new exit (range 10) 9962 | -5/Factory | Entered another Factory area 9962 | -4/Factory | Evolved 2 slots: Weapon x2 9990 | -4/Factory | Discovered new exit (range 10) 10002 | -4/Factory | Build established: Mutant 10375 | -4/Factory | Entered Research 10375 | -3/Research | Evolved 2 slots: Utility x2 10942 | -3/Research | Found Fusion Bomb Launcher 11314 | -3/Research | Destroyed 7 combat bots 11359 | -3/Research | Core integrity fell below 50% 11409 | -3/Research | Core integrity fell below 20% 11415 | -3/Research | Released all parts (4) 11434 | -3/Research | Destroyed by G-67 Veteran with Plasma Rifle Last Messages --------------- 11405_ G-67 Veteran Flexi-carbon Leg severed. 11408_ G-67 Veteran destroyed. 11415_ Released Huge Storage Unit. 11415_ Recoil Nullifier crushed and broken. 11415_ Cmb. Antigrav System crushed and broken. 11415_ Drone Bay crushed and broken. 11415_ Released Armor Integrity Analyzer. 11415_ Released Cld. Gravmag System. 11415_ Cld. Gravmag System crushed and broken. 11415_ Released Ionic Axe. 11415_ Ionic Axe crushed and broken. 11415_ Slammed into S-43 Plague. 11416_ Acquired 47 matter. 11417_ Acquired 40 matter. 11418_ Acquired 3 matter. 11424_ Slug penetrates Wall. 11424_ Penetrated by Slug. 11425_ Acquired 27 matter. 11428_ Acquired 21 matter. 11433_ Acquired Imp. Antigrav System. Map ----- +----------------------------------------------------+ | + !=""""##??############??????????????????????# | | # =%""""##??############??????????????????????# | | # == ##??##!/ ##??????????????????????# | | # = ######! ##### ??????????????????# | | #####+######### "" ##### # ##????????# | | # """ ##T ###+##+## ##????????# | | # S" + ##????????# | | # =*""" ########## #####????????# | | + !""" ########## #####????????## | | # % ##???????????????????????? | | "" = #!*! # ???????????????????????? | | "" * ####+##### ???????????????????????? | | "" ! + ???????????????????????? | | ### ???????????????????????? | | "" "" ### ???????????????????????? | | % ""F"" ##?????????????????????????? | | """ ##?????????????????????????? | | #############+### #########???? #????????????? | | ! ##### ## ########### #????????????? | | ##?## ## #### #????????????? | | ##?## ## !! #????????????? | | ] ##### ## ! #????????????? | | ##### ## #????????????? | | + + = ## #????????????? | | ##### ##### #????????????? | | ##### ###*# |@ ????????? | | + + ##### ! ????????? | | #+#####+########### ! ????????? | | # ##### ##### s u ?????????? | | # ### ### ##### g ?????????? | | ### ###### ### g ??????????? | | ! !######+# ####g### ??????????? | | [ ###=#### ####+####??????????? | | # ###[#### % ## ??????????????? | | ###/#####%!%=/ ! ! ##?????????????????? | | ## !##[#### ##?????????????????? | | ## ]## #### [ ##?????????????????? | | ##|! ![##%##################?????????H???????? | | ##|! %# =# ####?????????????????? | | ##| ! +%%!# ????????????????????????????????? | | ## !!%#%%%# ????????????????????????????????? | | ##] |!##### ????????????????????????????????? | | ### ######## ????????????????????????????????? | | #######??????????????????????????????????????? | | ## ?????????????????????????????????????????? | | #????????????????????????????????????????????? | | #????????????????????????????????????????????? | | #????????????????????????????????????????????? | | ????????????????????????????????????????????? | | ### ????????????????????????????????????????????? | +----------------------------------------------------+ Best States ------------- Heat Dissipation 117 Energy Generation 21 Energy Capacity 315 Matter Stores 500 Matter Capacity 750 Sight Range 22 Robot Scan Range 16 Terrain Scan Range 14 Terrain Scan Density 10 Cloak Strength 2 Armor Coverage 600 Resistance: KI 30 Utility Shielding 66 Evasion (%) 55 Targeting Accuracy 8 Armor Integrity Analysis 30 Recoil Reduction 6 Kinecelleration 30 Item Schematics ----------------- Magnetic Acceleration Cannon | -7/Factory | Hacked Robot Schematics ------------------ None Fabricated ------------ Nothing Alien Tech Used ----------------- None Achievements -------------- None Challenges ------------ None Game ------ Seed EnergyZioniteSplitter Manual? 0 Play Time 01:47:21 Cumulative 260.6 hours Start 2022.05.25 @ 18:26:41 End 2022.05.26 @ 11:48:30 Sessions 1 Manual Loads 0 Difficulty Rogue Special Mode None Game No. 349 Rogue 349 Adventurer 0 Explorer 0 Win Type - Total 5 Types 4/0/0/1/0/0/0/0/0 Lore% 67 Gallery% 79 Achievement% 57 Wizard Run 0 Options --------- ASCII 0 Keyboard 1 Movement Vi Keybinds 0 Fullscreen 1 Font 18/SmallcapsGlow Map View 76x50 Tactical HUD 1 Map Filters NONE Filters NONE Steam 1 RUN: a73ff483-d40f-475e-9da3-36561bbac132